bitfinex/quotes_ETHUSD_20251130
["timestamp","ask_amount","ask_price","bid_price","bid_amount"]
[1764505099627,0.9485,3013.2,3013.0,3.84]
[1764505099834,0.4884,3013.1,3012.9,3.84]
[1764505100346,0.4601,3013.0,3012.9,3.84]
[1764505101461,0.9485,3013.0,3012.9,3.84]
[1764505102645,0.4736,3013.3,3012.9,3.84]
[1764505102851,0.9568,3013.0,3012.9,3.84]
[1764505103556,0.4736,3013.2,3012.9,3.84]
[1764505104057,0.4756,3013.4,3013.0,0.03318951]
[1764505104428,0.4832,3013.1,3012.9,3.84]
[1764505104627,0.002,3013.4,3012.9,3.84]
[1764505104833,0.4736,3013.3,3013.0,0.2996]
[1764505105044,0.4736,3013.3,3012.9,3.84]
[1764505105761,0.002,3013.4,3013.0,0.03318951]
[1764505105934,0.4756,3013.4,3013.0,0.03318951]
[1764505107971,0.002,3013.4,3013.1,0.1008]
[1764505108274,0.002,3013.4,3013.2,0.209]
[1764505108855,0.002,3013.4,3013.3,0.2996]
[1764505109069,0.002,3013.4,3013.3,4.1396]
[1764505109268,0.002,3013.4,3013.3,4.66537873]
[1764505109650,0.4852,3013.4,3013.3,4.36577873]
[1764505110137,0.4852,3013.4,3013.3,0.52577873]
[1764505110336,0.4852,3013.4,3013.2,0.2421873]
[1764505110337,0.002,3013.4,3013.2,0.2421873]
[1764505110565,0.002,3013.4,3013.2,0.209]
[1764505110748,0.4832,3013.3,3013.1,0.4756]
[1764505110961,0.4756,3013.4,3013.1,0.6846]
[1764505110962,0.4832,3013.2,3013.1,0.6846]
[1764505111341,0.9568,3013.2,3013.1,0.209]
[1764505113336,0.9568,3013.2,3012.8,0.209]
[1764505113564,0.4736,3013.1,3012.8,0.209]
[1764505113857,0.4832,3012.9,3012.8,0.209]
[1764505114067,0.4736,3013.1,3012.8,0.209]
[1764505114263,0.681,3012.9,3012.7,0.72559411]
[1764505114567,0.4832,3012.8,3012.6,0.209]
[1764505114865,0.4736,3013.1,3012.6,0.209]
[1764505116478,0.681,3012.7,3012.6,0.209]
[1764505116985,1.1546,3012.7,3012.6,0.209]
[1764505119582,1.1546,3012.7,3012.4,0.681]
[1764505119756,0.4832,3012.5,3012.4,0.209]
[1764505120269,0.9568,3012.5,3012.4,0.209]
[1764505121669,0.9568,3012.5,3012.2,0.03319832]
[1764505121858,0.9568,3012.4,3012.2,0.03319832]
[1764505122173,0.4832,3012.3,3012.2,0.03319832]
[1764505122357,0.4832,3012.3,3012.1,0.21]
[1764505122567,0.4832,3012.2,3012.1,0.21]
[1764505122968,0.1978,3012.7,3012.1,0.21]
[1764505123155,0.4736,3012.5,3012.1,0.21]
[1764505124682,0.4832,3012.2,3012.1,0.21]
[1764505125042,0.4736,3012.5,3012.1,0.21]
[1764505126948,0.4736,3012.5,3012.2,3.84]
[1764505127578,0.4832,3012.3,3012.2,4.56559411]
[1764505128149,0.9568,3012.3,3012.2,4.56559411]
[1764505129791,0.1978,3012.9,3012.3,0.72559411]
[1764505130089,0.1978,3012.9,3012.3,4.56559411]
[1764505130384,0.49846842,3012.8,3012.3,4.56559411]
[1764505130682,0.49846842,3012.8,3012.4,0.03319612]
[1764505132150,0.49846842,3012.8,3012.3,4.56559411]
[1764505133067,0.49846842,3012.8,3012.4,3.84]
[1764505133872,0.4643,3012.5,3012.4,4.56559411]
[1764505135178,0.4522,3012.7,3012.4,4.56559411]
[1764505135975,0.4522,3012.7,3012.4,0.72559411]
[1764505136196,0.4522,3012.7,3012.4,0.75879023]
[1764505137793,0.1978,3012.9,3012.6,0.2996]
[1764505137995,0.002,3013.1,3012.6,0.2996]
[1764505138295,0.4542,3013.1,3012.6,0.2996]
[1764505139160,0.4542,3013.1,3012.5,0.21]
[1764505139985,0.4542,3013.1,3012.6,0.03319391]
[1764505141481,0.4542,3013.1,3012.7,3.84]
[1764505142292,0.4643,3012.8,3012.7,3.84]
[1764505143078,0.4643,3012.8,3012.7,4.3043]
[1764505144094,0.1948,3012.9,3012.7,4.3043]
[1764505144259,0.4643,3012.8,3012.7,4.3043]
[1764505144454,0.4643,3012.8,3012.7,3.84]
[1764505144660,0.4643,3012.8,3012.7,4.487]
[1764505145084,0.9165,3012.8,3012.7,4.487]
[1764505146471,0.4643,3012.8,3012.7,4.487]
[1764505148694,0.002,3012.8,3012.7,4.487]
[1764505150692,0.002,3012.8,3012.7,4.9600195]
[1764505151389,0.4663,3012.8,3012.7,4.9600195]
[1764505151591,0.4663,3012.8,3012.7,4.487]
[1764505152677,0.002,3012.8,3012.7,4.487]
[1764505153707,0.002,3012.8,3012.7,4.7866]
[1764505155267,0.002,3012.8,3012.7,4.487]
[1764505155771,0.4663,3012.8,3012.7,4.487]
[1764505155970,0.4663,3012.8,3012.7,0.647]
[1764505156870,0.9185,3012.8,3012.7,0.647]
[1764505169090,0.9185,3012.8,3012.2,3.84]
[1764505169407,0.002,3012.8,3012.2,3.84]
[1764505169578,0.002,3012.8,3012.3,0.9185]
[1764505169777,0.4813,3012.7,3012.3,0.9185]
[1764505169978,0.452,3012.4,3012.3,0.9185]
[1764505170598,0.9333,3012.4,3012.3,0.9185]
[1764505178212,0.4833,3012.8,3012.3,1.2181]
[1764505178383,0.02486842,3012.7,3012.3,1.2181]
[1764505178585,0.02486842,3012.7,3012.3,0.2996]
[1764505178885,0.4813,3012.6,3012.4,0.4833]
[1764505180481,0.4813,3012.6,3012.4,4.3233]
[1764505180781,0.4813,3012.6,3012.4,3.84]
[1764505181011,0.4813,3012.6,3012.5,0.4813]
[1764505182814,0.9333,3012.6,3012.5,0.4813]
[1764505183016,0.9353,3012.6,3012.5,0.4813]
[1764505183615,0.002,3012.6,3012.5,0.7809]
[1764505183815,0.002,3012.6,3012.5,1.72263]
[1764505186487,0.002,3012.6,3012.5,5.56263]
[1764505192022,0.002,3012.6,3012.5,5.29622502]
[1764505192522,0.002,3012.6,3012.5,5.26303]
[1764505192823,0.002,3012.6,3012.5,1.42303]
[1764505193035,0.002,3012.6,3012.5,0.6913]
[1764505193326,0.002,3012.6,3012.5,0.9909]
[1764505196499,0.9603,3012.6,3012.5,0.6913]
[1764505197814,0.4791,3012.6,3012.5,0.6913]
[1764505200123,0.002,3012.6,3012.5,0.9909]
[1764505201031,0.002,3012.6,3012.5,0.6913]
[1764505201925,0.4791,3012.6,3012.5,0.6913]
[1764505202127,0.9603,3012.6,3012.5,0.6903]
[1764505202723,0.4791,3012.6,3012.5,0.6903]
[1764505204020,0.9603,3012.6,3012.5,0.4813]
[1764505204342,1.0600008,3012.6,3012.5,0.4813]
[1764505206018,0.9603,3012.6,3012.5,0.4813]
[1764505207713,0.002,3012.6,3012.5,0.4813]
[1764505207934,0.9603,3012.6,3012.5,0.4813]
[1764505210818,0.4791,3012.6,3012.5,0.4813]
[1764505211016,0.002,3012.6,3012.5,0.4813]
[1764505211216,0.4791,3012.6,3012.5,0.4813]
[1764505211446,0.9603,3012.6,3012.5,0.4813]
[1764505211617,0.4791,3012.6,3012.5,0.4813]
[1764505211818,0.9603,3012.6,3012.5,0.4813]
[1764505213142,0.9603,3012.6,3012.1,0.001]
[1764505213348,0.4791,3012.6,3012.1,0.13219942]
[1764505213545,0.9603,3012.6,3012.1,0.13219942]
[1764505213748,0.9603,3012.6,3012.2,0.9603]
[1764505213930,0.4812,3012.5,3012.2,0.9603]
[1764505217125,0.002,3012.6,3012.2,0.9603]
[1764505217428,0.002,3012.6,3012.2,1.29309832]
[1764505217750,0.002,3012.6,3012.2,0.33279832]
[1764505218118,0.002,3012.6,3012.3,0.6785]
[1764505218354,0.002,3012.6,3012.4,0.03319612]
[1764505219015,0.002,3012.6,3012.5,0.6785]
[1764505219443,0.002,3012.6,3012.5,0.9781]
[1764505221455,0.002,3012.6,3012.5,1.46322961]
[1764505221749,0.4791,3012.6,3012.5,0.6785]
[1764505222255,0.002,3012.6,3012.5,0.6785]
[1764505224456,0.002,3012.6,3012.5,0.9781]
[1764505225160,0.002,3012.6,3012.5,4.8181]
[1764505226152,0.002,3012.6,3012.5,4.5185]
[1764505226558,0.4951,3012.6,3012.5,0.6785]
[1764505229857,0.002,3012.6,3012.5,0.6785]
[1764505230059,0.002,3012.6,3012.5,0.9781]
[1764505230760,0.002,3012.6,3012.5,1.84688474]
[1764505230960,0.002,3012.6,3012.5,1.2777]
[1764505231149,0.002,3012.6,3012.5,0.9781]
[1764505231848,0.002,3012.6,3012.5,1.01129502]
[1764505232047,0.002,3012.6,3012.5,0.9781]
[1764505232349,0.002,3012.6,3012.5,1.2777]
[1764505232668,0.002,3012.6,3012.5,1.19932941]
[1764505233349,0.002,3012.6,3012.5,0.89972941]
[1764505233957,0.002,3012.6,3012.5,5.76492352]
[1764505234140,0.002,3012.6,3012.5,5.97392352]
[1764505234833,0.002,3012.6,3012.5,6.30671854]
[1764505235464,0.002,3012.6,3012.5,5.70751854]
[1764505235666,0.002,3012.6,3012.5,5.67432352]
[1764505237169,0.002,3012.6,3012.5,5.97392352]
[1764505237967,0.002,3012.6,3012.5,6.27352352]
[1764505240672,0.002,3012.6,3012.5,5.97392352]
[1764505241046,0.002,3012.6,3012.5,6.30671854]
[1764505242782,0.002,3012.6,3012.5,5.70751854]
[1764505243863,0.002,3012.6,3012.5,5.67432352]
[1764505244877,0.002,3012.6,3012.5,5.97392352]
[1764505248587,0.002,3012.6,3012.5,5.67432352]
[1764505250284,0.002,3012.6,3012.5,5.97392352]
[1764505253487,0.002,3012.6,3012.5,6.00711854]
[1764505254385,0.002,3012.6,3012.5,6.30671854]
[1764505254588,0.002,3012.6,3012.5,8.08105517]
[1764505254756,0.002,3012.6,3012.5,8.04786015]
[1764505255192,0.002,3012.6,3012.5,6.27352352]
[1764505255392,0.002,3012.6,3012.5,6.30671854]
[1764505256806,0.002,3012.6,3012.5,7.45504661]
[1764505258468,0.4533,3012.6,3012.5,7.45504661]
[1764505258698,0.9191,3012.6,3012.5,0.6785]
[1764505258912,0.9191,3012.6,3012.5,0.71169502]
[1764505260119,0.9191,3012.6,3012.5,0.6785]
[1764505263603,0.9191,3012.6,3012.5,4.5185]
[1764505264008,0.9191,3012.6,3012.5,3.84]
[1764505265495,0.9191,3012.6,3012.4,0.9191]
[1764505265708,0.9171,3012.5,3012.4,0.9191]
[1764505269735,0.9171,3012.5,3012.4,4.7591]
[1764505271032,0.9171,3012.5,3012.2,3.84]
[1764505271204,0.4513,3012.3,3012.2,4.7571]
[1764505271404,0.4513,3012.3,3012.2,3.84]
[1764505271608,0.9171,3012.3,3012.2,3.84]
[1764505275536,0.9171,3012.3,3012.1,0.001]
[1764505275740,0.9171,3012.2,3012.1,0.001]
[1764505282052,0.4513,3012.2,3012.1,0.001]
[1764505282360,0.4633,3012.2,3012.1,0.001]
[1764505282560,0.9281,3012.2,3012.1,0.13401255]
[1764505283661,0.4633,3012.2,3012.1,0.13401255]
[1764505283861,0.4648,3012.4,3012.1,0.13401255]
[1764505284567,0.4633,3012.2,3012.1,0.13401255]
[1764505284934,0.9301,3012.2,3012.1,0.13401255]
[1764505285138,0.4653,3012.2,3012.1,0.13401255]
[1764505285939,0.9301,3012.2,3012.1,0.13401255]
[1764505288553,0.9301,3012.2,3012.1,0.001]
[1764505289371,1.0298008,3012.2,3012.1,0.001]
[1764505294960,0.9301,3012.2,3012.1,0.001]
[1764505295872,0.95496842,3012.2,3012.1,0.001]
[1764505297401,0.9301,3012.2,3012.1,0.001]
[1764505298714,0.9301,3012.2,3012.1,0.001]
[1764505299089,0.95496842,3012.2,3012.1,0.001]
[1764505300203,1.05466922,3012.2,3012.1,0.001]
[1764505300404,1.0298008,3012.2,3012.1,0.001]
[1764505303284,0.9301,3012.2,3012.1,0.001]
[1764505303824,0.95496842,3012.2,3012.1,0.001]
[1764505304400,0.002,3012.2,3012.1,0.6982]
[1764505304903,0.002,3012.2,3012.1,0.3986]
[1764505307907,0.002,3012.2,3012.1,0.001]
[1764505308701,0.002,3012.2,3012.1,0.3006]
[1764505309134,0.002,3012.2,3012.1,4.2386]
[1764505309432,0.002,3012.2,3012.1,6.00165506]
[1764505309734,0.002,3012.2,3012.1,7.78237815]
[1764505309919,0.002,3012.2,3012.1,7.99137815]
[1764505310305,0.002,3012.2,3012.1,6.21065506]
[1764505316132,0.002,3012.2,3012.1,5.91105506]
[1764505316627,0.002,3012.2,3012.1,6.24385448]
[1764505316836,0.002,3012.2,3012.1,6.21065506]
[1764505320255,0.002,3012.2,3012.1,6.24385448]
[1764505325139,0.002,3012.2,3012.1,2.40385448]
[1764505325339,0.002,3012.2,3012.1,1.96659353]
[1764505328155,0.002,3012.2,3012.1,2.37209753]
[1764505328357,0.002,3012.2,3012.1,4.15282062]
[1764505328560,0.002,3012.2,3012.1,2.37209753]
[1764505336079,0.002,3012.2,3012.1,5.86909753]
[1764505336585,0.002,3012.2,3012.1,6.69273163]
[1764505336761,0.002,3012.2,3012.1,6.65953221]
[1764505340880,0.002,3012.6,3012.5,4.96909811]
[1764505341178,0.002,3012.6,3012.5,5.47769811]
[1764505341690,0.002,3012.6,3012.5,5.61064125]
[1764505341862,0.002,3012.6,3012.5,6.34964462]
[1764505342590,0.002,3012.6,3012.5,6.05004462]
[1764505343473,0.4541,3012.6,3012.5,6.05004462]
[1764505343668,0.002,3012.6,3012.5,6.34964462]
[1764505345204,0.4541,3012.6,3012.5,6.05004462]
[1764505345399,0.002,3012.6,3012.5,6.05004462]
[1764505345598,0.002,3012.6,3012.5,6.34964462]
[1764505346296,0.002,3012.6,3012.5,6.05004462]
[1764505346867,0.002,3012.6,3012.5,5.64454062]
[1764505347377,0.002,3012.6,3012.5,7.42393311]
[1764505347885,0.4541,3012.6,3012.5,7.42393311]
[1764505348067,0.002,3012.6,3012.5,5.94414062]
[1764505348267,0.002,3012.6,3012.5,6.27693564]
[1764505349201,0.002,3012.6,3012.5,6.24374062]
[1764505349410,0.002,3012.6,3012.5,5.94414062]
[1764505350484,0.002,3012.6,3012.5,5.97733564]
[1764505351099,0.002,3012.6,3012.5,6.27693564]
[1764505351296,0.002,3012.6,3012.5,6.68243964]
[1764505351606,0.002,3012.6,3012.5,6.64924462]
[1764505352185,0.002,3012.6,3012.5,9.01548807]
[1764505353099,0.002,3012.6,3012.5,6.64924462]
[1764505354595,0.002,3012.6,3012.5,10.14624462]
[1764505354797,0.002,3012.6,3012.5,6.64924462]
[1764505358691,0.002,3012.8,3012.6,4.96709811]
[1764505359027,0.002,3012.8,3012.7,5.14111196]
[1764505359191,0.002,3012.8,3012.7,5.44071196]
[1764505359391,0.002,3012.8,3012.7,5.57364671]
[1764505360392,0.002,3012.8,3012.7,5.27404671]
[1764505361792,0.002,3012.8,3012.7,5.57364671]
[1764505362628,0.002,3012.8,3012.7,5.27404671]
[1764505364534,0.002,3012.8,3012.7,9.11004671]
[1764505364741,0.002,3012.8,3012.7,9.0768539]
[1764505370538,0.9191,3012.8,3012.7,8.7772539]
[1764505371037,0.002,3012.8,3012.7,8.7772539]
[1764505373070,0.002,3012.8,3012.7,9.3764539]
[1764505373360,0.002,3012.8,3012.7,7.00395732]
[1764505376554,0.002,3013.0,3012.9,4.237504]
[1764505376749,0.002,3013.0,3012.9,9.21897918]
[1764505376962,0.002,3013.0,3012.9,9.18578857]
[1764505377458,0.002,3013.0,3012.9,9.31871139]
[1764505378633,0.002,3013.0,3012.9,13.64421666]
[1764505382339,0.002,3013.2,3013.1,4.233504]
[1764505382546,0.002,3013.2,3013.1,13.20197501]
[1764505382752,0.002,3013.2,3013.1,13.4683866]
[1764505383087,0.002,3013.2,3013.1,13.60129219]
[1764505385767,0.002,3013.2,3013.1,16.57737247]
[1764505386357,0.002,3013.2,3013.1,13.60129219]
[1764505386567,0.002,3013.2,3013.1,17.47792397]
[1764505386765,0.002,3013.2,3013.1,20.45400425]
[1764505387568,0.002,3013.2,3013.1,20.07337247]
[1764505388489,0.002,3013.2,3013.1,20.31342619]
[1764505388679,0.002,3013.2,3013.1,23.28950647]
[1764505389187,0.002,3013.3,3013.1,23.28950647]
[1764505389392,0.002,3013.5,3013.2,10.24610622]
[1764505389588,0.002,3013.5,3013.4,4.92669811]
[1764505390085,0.002,3013.5,3013.4,5.39235746]
[1764505391169,0.002,3013.5,3013.4,5.35917236]
[1764505391371,0.4588,3014.1,3014.0,4.227504]
[1764505391582,0.4588,3014.1,3014.0,5.58484851]
[1764505391782,0.9553,3014.1,3014.0,7.36077432]
[1764505391972,0.9553,3014.1,3014.0,7.81965558]
[1764505395195,0.9553,3014.1,3014.0,6.04364851]
[1764505395770,0.9553,3014.1,3014.0,5.63814451]
[1764505397468,0.9553,3014.1,3014.0,5.42914451]
[1764505397694,0.9553,3014.1,3014.0,5.63814451]
[1764505400092,0.9553,3014.1,3014.0,5.42914451]
[1764505400297,0.9553,3014.1,3014.0,5.63814451]
[1764505401598,0.9553,3014.1,3014.0,5.42914451]
[1764505401799,0.9553,3014.1,3014.0,5.63814451]
[1764505402897,0.9553,3014.1,3014.0,5.42914451]
[1764505403099,0.9553,3014.1,3014.0,5.63814451]
[1764505403295,0.9553,3014.1,3014.0,7.41415158]
[1764505404000,0.9553,3014.1,3014.0,7.20515158]
[1764505404201,0.9553,3014.1,3014.0,7.41415158]
[1764505404969,0.9573,3014.1,3014.0,7.41415158]
[1764505405176,0.9573,3014.1,3014.0,6.99140118]
[1764505405699,0.9573,3014.1,3014.0,5.00639411]
[1764505406399,0.9573,3014.1,3014.0,4.2808]
[1764505406599,0.9573,3014.1,3014.0,5.00639411]
[1764505406804,0.9573,3014.1,3014.0,4.2808]
[1764505407192,0.9573,3014.1,3014.0,5.00639411]
[1764505407388,0.9573,3014.1,3014.0,0.4588]
[1764505408402,0.9573,3014.1,3013.7,0.93459411]
[1764505408697,0.5373,3013.8,3013.7,0.93459411]
[1764505409004,0.5373,3013.8,3013.7,0.209]
[1764505409206,1.0363,3013.8,3013.7,0.7463]
[1764505418108,1.0363,3013.8,3013.7,5.29389411]
[1764505422103,0.5373,3013.8,3013.7,5.29389411]
[1764505422425,1.0363,3013.8,3013.7,5.82670192]
[1764505422626,1.0363,3013.8,3013.7,5.85988372]
[1764505422926,0.9659,3013.8,3013.7,5.85988372]
[1764505423323,0.4669,3013.8,3013.7,5.85988372]
[1764505423528,0.189,3013.9,3013.8,0.72559411]
[1764505423729,0.002,3014.0,3013.8,1.38424189]
[1764505424019,0.002,3014.0,3013.9,4.54759411]
[1764505424189,0.002,3014.0,3013.9,5.04859411]
[1764505424590,0.4689,3014.0,3013.9,5.04859411]
[1764505425133,0.9679,3014.0,3013.9,5.04859411]
[1764505426086,0.002,3014.0,3013.9,5.64353637]
[1764505426317,0.4689,3014.0,3013.9,5.64353637]
[1764505426516,0.9679,3014.0,3013.9,5.64353637]
[1764505431039,0.002,3014.0,3013.9,5.64353637]
[1764505431372,0.002,3014.0,3013.9,5.94313637]
[1764505431539,0.002,3014.0,3013.9,5.64353637]
[1764505432839,0.4689,3014.0,3013.9,5.64353637]
[1764505433015,0.9537,3014.0,3013.9,5.64353637]
[1764505433945,0.9537,3014.0,3013.9,5.04859411]
[1764505435815,0.9537,3014.0,3013.9,5.25759411]
[1764505439836,0.9537,3014.0,3013.9,4.25759411]
[1764505441413,0.9537,3014.0,3013.9,4.25859411]
[1764505443415,0.002,3014.0,3013.9,4.55819411]
[1764505443622,0.002,3014.0,3013.9,5.1949323]
[1764505444220,0.002,3014.0,3013.9,5.2281119]
[1764505445042,0.002,3014.0,3013.9,4.8953323]
[1764505445249,0.002,3014.0,3013.9,4.9285119]
[1764505445551,0.002,3014.0,3013.9,4.29177371]
[1764505445749,0.002,3014.0,3013.9,4.59137371]
[1764505445948,0.002,3014.0,3013.9,4.29177371]
[1764505449832,0.4775,3014.0,3013.9,4.25859411]
[1764505450320,0.9623,3014.0,3013.9,4.25859411]
[1764505451354,0.9623,3014.0,3013.9,6.03460118]
[1764505451862,0.4775,3014.0,3013.9,6.03460118]
[1764505452436,0.002,3014.0,3013.9,6.9376613]
[1764505452639,0.002,3014.0,3013.9,5.46125423]
[1764505453026,0.002,3014.0,3013.9,5.49443383]
[1764505455633,0.002,3014.0,3013.9,5.19483383]
[1764505455846,0.002,3014.0,3013.9,5.16165423]
[1764505456967,0.002,3014.0,3013.9,5.56715823]
[1764505458436,0.002,3014.0,3013.9,2.74515823]
[1764505459864,0.002,3014.0,3013.9,2.33965423]
[1764505460564,0.002,3014.0,3013.9,2.37283383]
[1764505461667,0.002,3014.0,3013.9,2.67243383]
[1764505462565,0.002,3014.0,3013.9,2.37283383]
[1764505462946,0.002,3014.0,3013.9,2.16383383]
[1764505463146,0.002,3014.0,3013.9,2.37283383]
[1764505465184,0.002,3014.0,3013.9,2.33965423]
[1764505465347,0.002,3014.0,3013.9,2.04005423]
[1764505465547,0.4587,3014.0,3013.9,2.04005423]
[1764505465748,0.9314,3014.0,3013.9,2.04005423]
[1764505466458,0.4587,3014.0,3013.9,1.83105423]
[1764505466770,0.9314,3014.0,3013.9,1.43659411]
[1764505468070,0.9314,3014.0,3013.9,1.22759411]
[1764505468273,0.9314,3014.0,3013.9,1.43659411]
[1764505469668,0.002,3014.0,3013.9,1.43659411]
[1764505469863,0.921,3014.0,3013.9,1.43659411]
[1764505471468,0.4554,3014.0,3013.9,1.43659411]
[1764505472175,0.002,3014.0,3013.9,1.73619411]
[1764505474352,0.002,3014.0,3013.9,4.55819411]
[1764505474753,0.4554,3014.0,3013.9,4.25859411]
[1764505475081,0.921,3014.0,3013.9,4.25859411]
[1764505475382,0.4554,3014.0,3013.9,4.25859411]
[1764505476579,0.002,3014.0,3013.9,2.09924002]
[1764505476878,0.002,3014.0,3013.9,2.43201962]
[1764505481586,0.002,3014.0,3013.9,5.25401962]
[1764505481958,0.002,3014.0,3013.9,4.92124002]
[1764505482361,0.002,3014.0,3013.9,7.28910499]
[1764505482792,0.4554,3014.0,3013.9,7.28910499]
[1764505482964,0.921,3014.0,3013.9,7.28910499]
[1764505483485,0.921,3014.0,3013.9,1.43659411]
[1764505484061,0.002,3014.0,3013.9,1.73619411]
[1764505484258,0.002,3014.0,3013.9,4.13723868]
[1764505485492,0.002,3014.0,3013.9,4.10405908]
[1764505485797,0.002,3014.0,3013.9,3.80445908]
[1764505486091,0.002,3014.0,3013.9,4.18490499]
[1764505487089,0.002,3014.0,3013.9,4.48450499]
[1764505487291,0.002,3014.0,3013.9,2.52214402]
[1764505487484,0.4554,3014.0,3013.9,4.19613266]
[1764505488299,0.4554,3014.0,3013.9,3.98713266]
[1764505488494,0.4554,3014.0,3013.9,4.19613266]
[1764505489197,0.4554,3014.0,3013.9,3.98713266]
[1764505489372,0.4554,3014.0,3013.9,7.01813266]
[1764505490667,0.002,3014.0,3013.9,7.01813266]
[1764505495599,0.002,3014.0,3013.9,6.80913266]
[1764505495771,0.002,3014.0,3013.9,7.01813266]
[1764505497904,0.002,3014.0,3013.9,7.31773266]
[1764505498073,0.002,3014.0,3013.9,7.01813266]
[1764505498577,0.002,3014.0,3013.9,4.19613266]
[1764505498798,0.002,3014.0,3013.9,4.49573266]
[1764505501708,0.002,3014.0,3013.9,4.52891226]
[1764505502406,0.9371,3014.0,3013.9,4.19613266]
[1764505502578,0.4827,3014.0,3013.9,3.81568675]
[1764505502907,0.9371,3014.0,3013.9,3.81568675]
[1764505504004,0.002,3014.0,3013.9,4.11528675]
[1764505505804,0.002,3014.0,3013.9,3.60668675]
[1764505505997,0.4827,3014.0,3013.9,3.81568675]
[1764505508110,0.9371,3014.0,3013.9,3.81568675]
[1764505508308,0.9371,3014.0,3013.9,1.43659411]
[1764505508513,0.9371,3014.0,3013.9,3.81709474]
[1764505508708,0.4827,3014.0,3013.9,4.19880421]
[1764505508937,0.002,3014.0,3013.9,1.81830358]
[1764505509114,0.002,3014.0,3013.9,1.43659411]
[1764505509311,0.002,3014.0,3013.9,1.22759411]
[1764505509516,0.002,3014.0,3013.9,1.43659411]
[1764505509813,0.002,3014.0,3013.9,3.81700572]
[1764505510683,0.4827,3014.0,3013.9,3.60800572]
[1764505510887,0.9371,3014.0,3013.9,4.17780629]
[1764505512214,0.9371,3014.0,3013.9,3.60800572]
[1764505512390,0.9371,3014.0,3013.9,0.502]
[1764505512590,0.9371,3014.0,3013.9,0.711]
[1764505512990,0.9371,3014.0,3013.9,3.324]
[1764505513298,0.4827,3014.0,3013.9,3.533]
[1764505513506,0.9371,3014.0,3013.9,3.533]
[1764505514797,0.9371,3014.0,3013.9,0.711]
[1764505516338,0.9371,3014.0,3013.9,2.49518096]
[1764505516543,0.9371,3014.0,3013.9,0.711]
[1764505516842,0.9371,3014.0,3013.9,2.4951809]
[1764505523624,0.002,3014.0,3013.9,2.4951809]
[1764505523819,0.9893,3014.0,3013.9,2.4951809]
[1764505530846,0.9893,3014.0,3013.9,5.3171809]
[1764505532945,0.9893,3014.0,3013.9,5.1081809]
[1764505533146,0.9893,3014.0,3013.9,5.3171809]
[1764505535654,0.002,3014.0,3013.9,5.3171809]
[1764505536037,0.5013,3014.0,3013.9,5.3171809]
[1764505536238,0.9893,3014.0,3013.9,5.3171809]
[1764505539564,0.9893,3014.0,3013.9,5.6167809]
[1764505539565,0.002,3014.0,3013.9,5.6167809]
[1764505539736,0.002,3014.0,3013.9,5.3171809]
[1764505540056,0.002,3014.0,3013.9,3.533]
[1764505540276,0.9893,3014.0,3013.9,3.533]
[1764505540478,0.9893,3014.0,3013.9,5.31767964]
[1764505540969,0.9893,3014.0,3013.9,2.49567964]
[1764505541153,0.9893,3014.0,3013.9,2.52885924]
[1764505541358,0.9893,3014.0,3013.9,0.7441796]
[1764505541974,0.9893,3014.0,3013.9,0.711]
[1764505547973,0.002,3014.0,3013.9,1.0106]
[1764505557900,0.4664,3014.0,3013.9,0.711]
[1764505558193,0.9494,3014.0,3013.9,0.711]
[1764505560296,0.9494,3014.0,3013.9,0.502]
[1764505560505,0.9494,3014.0,3013.9,3.533]
[1764505561363,0.9494,3014.0,3013.9,3.324]
[1764505561560,0.9494,3014.0,3013.9,3.533]
[1764505564512,0.9494,3014.0,3013.9,6.0446177]
[1764505564720,0.9494,3014.0,3013.9,4.25859411]
[1764505569322,0.9494,3014.0,3013.9,4.04959411]
[1764505569617,0.9494,3014.0,3013.9,1.43659411]
[1764505569811,0.9494,3014.0,3013.9,1.22759411]
[1764505570012,0.9494,3014.0,3013.9,0.711]
[1764505574116,0.9494,3014.0,3013.9,0.502]
[1764505578329,0.9494,3014.0,3013.9,0.502]
[1764505581518,0.97426842,3014.0,3013.9,0.502]
[1764505582028,0.49126842,3014.0,3013.9,0.502]
[1764505582236,0.4664,3014.0,3013.9,0.502]
[1764505582605,0.931,3014.0,3013.9,0.502]
[1764505585732,0.4664,3014.0,3013.9,0.502]
[1764505585935,0.931,3014.0,3013.9,0.502]
[1764505596739,0.002,3014.0,3013.9,0.502]
[1764505596915,0.52146842,3014.0,3013.9,0.502]
[1764505597540,0.98606842,3014.0,3013.9,0.502]
[1764505617430,0.52146842,3014.0,3013.9,0.502]
[1764505617644,0.52146842,3014.0,3013.9,0.8016]
[1764505617645,0.02686842,3014.0,3013.9,0.8016]
[1764505617843,0.002,3014.0,3013.9,0.502]
[1764505618661,0.002,3014.0,3013.9,0.8016]
[1764505618867,0.002,3014.0,3013.9,1.1012]
[1764505619158,0.002,3014.0,3013.9,0.8016]
[1764505620332,0.9443,3014.0,3013.9,0.502]
[1764505621562,0.9443,3014.0,3013.9,0.711]
[1764505622963,0.9443,3014.0,3013.9,0.502]
[1764505624371,0.4609,3014.0,3013.9,0.502]
[1764505625235,0.9443,3014.0,3013.9,0.502]
[1764505630875,0.4609,3014.0,3013.9,0.502]
[1764505631271,0.002,3014.0,3013.9,0.502]
[1764505631773,0.002,3014.0,3013.9,0.8016]
[1764505631970,0.002,3014.0,3013.9,1.1012]